[Event "Titled Tuesday Blitz June 27 Late 2023"]
[White "Labussiere, Yago"]
[Black "Golubev, Mikhail"]
[WhiteFideId "2186969"]
[BlackFideId "14100983"]
[WhiteElo "2440"]
[BlackElo "2547"]
[Result "0-1"]
[Round "9"]
[TimeControl "180+2"]
[Date "2023.06.27"]
[WhiteClock "0:00:06"]
[BlackClock "0:00:02"]
[Board "71"]

1. c4 {[%clk 0:03:00]}  g6 {[%clk 0:02:57]} 2. Nc3 {[%clk 0:03:00]}  Bg7 {[%clk 0:02:56]} 3. g3 {[%clk 0:03:01]}  e5 {[%clk 0:02:55]} 4. Bg2 {[%clk 0:03:00]}  d6 {[%clk 0:02:56]} 5. d3 {[%clk 0:03:00]}  Nc6 {[%clk 0:02:55]} 6. e4 {[%clk 0:03:00]}  Nd4 {[%clk 0:02:54]} 7. Nge2 {[%clk 0:02:59]}  Nxe2 {[%clk 0:02:54]} 8. Nxe2 {[%clk 0:02:58]}  f5 {[%clk 0:02:46]} 9. O-O {[%clk 0:02:54]}  Nf6 {[%clk 0:02:45]} 10. exf5 {[%clk 0:02:36]}  Bxf5 {[%clk 0:02:39]} 11. d4 {[%clk 0:02:36]}  e4 {[%clk 0:02:35]} 12. h3 {[%clk 0:02:31]}  O-O {[%clk 0:02:27]} 13. g4 {[%clk 0:02:30]}  Bd7 {[%clk 0:01:52]} 14. Ng3 {[%clk 0:02:20]}  d5 {[%clk 0:01:34]} 15. cxd5 {[%clk 0:02:19]}  Bb5 {[%clk 0:01:23]} 16. Re1 {[%clk 0:02:13]}  Bd3 {[%clk 0:01:19]} 17. Qb3 {[%clk 0:02:09]}  Kh8 {[%clk 0:01:08]} 18. Bg5 {[%clk 0:02:05]}  Qd6 {[%clk 0:00:49]} 19. Rad1 {[%clk 0:01:29]}  Nxd5 {[%clk 0:00:29]} 20. Rxd3 {[%clk 0:01:09]}  exd3 {[%clk 0:00:30]} 21. Qxd5 {[%clk 0:01:04]}  Bxd4 {[%clk 0:00:29]} 22. Be3 {[%clk 0:00:58]}  Bxe3 {[%clk 0:00:27]} 23. Rxe3 {[%clk 0:00:48]}  Qf6 {[%clk 0:00:25]} 24. Qxd3 {[%clk 0:00:43]}  Qxf2+ {[%clk 0:00:24]} 25. Kh2 {[%clk 0:00:43]}  Qxb2 {[%clk 0:00:24]} 26. Qc3+ {[%clk 0:00:43]}  Qxc3 {[%clk 0:00:23]} 27. Rxc3 {[%clk 0:00:44]}  c6 {[%clk 0:00:23]} 28. Rb3 {[%clk 0:00:42]}  Rf7 {[%clk 0:00:22]} 29. Ne4 {[%clk 0:00:41]}  Rd8 {[%clk 0:00:18]} 30. Kg3 {[%clk 0:00:42]}  Rd4 {[%clk 0:00:17]} 31. Nc5 {[%clk 0:00:41]}  b6 {[%clk 0:00:17]} 32. Ne4 {[%clk 0:00:34]}  c5 {[%clk 0:00:16]} 33. Ng5 {[%clk 0:00:34]}  Re7 {[%clk 0:00:15]} 34. h4 {[%clk 0:00:30]}  Red7 {[%clk 0:00:14]} 35. Nf3 {[%clk 0:00:21]}  Rd3 {[%clk 0:00:14]} 36. Rb2 {[%clk 0:00:21]}  Kg7 {[%clk 0:00:14]} 37. Bf1 {[%clk 0:00:21]}  Re3 {[%clk 0:00:12]} 38. Bc4 {[%clk 0:00:20]}  Rde7 {[%clk 0:00:11]} 39. Rf2 {[%clk 0:00:18]}  R3e4 {[%clk 0:00:11]} 40. Bd5 {[%clk 0:00:18]}  Re3 {[%clk 0:00:10]} 41. h5 {[%clk 0:00:18]}  gxh5 {[%clk 0:00:08]} 42. gxh5 {[%clk 0:00:18]}  Kh6 {[%clk 0:00:08]} 43. Kg4 {[%clk 0:00:18]}  Rd3 {[%clk 0:00:07]} 44. Bc4 {[%clk 0:00:16]}  Rd8 {[%clk 0:00:07]} 45. Ng5 {[%clk 0:00:10]}  Rd4+ {[%clk 0:00:06]} 46. Rf4 {[%clk 0:00:10]}  Rxf4+ {[%clk 0:00:06]} 47. Kxf4 {[%clk 0:00:11]}  Kxh5 {[%clk 0:00:06]} 48. Ne4 {[%clk 0:00:07]}  h6 {[%clk 0:00:06]} 49. Be2+ {[%clk 0:00:06]}  Kg6 {[%clk 0:00:05]} 50. Bd3 {[%clk 0:00:07]}  Kg7 {[%clk 0:00:05]} 51. Ng3 {[%clk 0:00:07]}  Rf7+ {[%clk 0:00:05]} 52. Nf5+ {[%clk 0:00:08]}  Kf8 {[%clk 0:00:05]} 53. Ke5 {[%clk 0:00:08]}  h5 {[%clk 0:00:04]} 54. Be2 {[%clk 0:00:08]}  Rd7 {[%clk 0:00:04]} 55. Bxh5 {[%clk 0:00:08]}  Rd2 {[%clk 0:00:05]} 56. a4 {[%clk 0:00:09]}  Ra2 {[%clk 0:00:05]} 57. Kd5 {[%clk 0:00:08]}  Rxa4 {[%clk 0:00:05]} 58. Kc6 {[%clk 0:00:09]}  Ra3 {[%clk 0:00:05]} 59. Nd6 {[%clk 0:00:09]}  Rd3 {[%clk 0:00:05]} 60. Nb5 {[%clk 0:00:09]}  c4 {[%clk 0:00:04]} 61. Nxa7 {[%clk 0:00:08]}  c3 {[%clk 0:00:04]} 62. Bg6 {[%clk 0:00:09]}  c2 {[%clk 0:00:04]} 63. Bxd3 {[%clk 0:00:05]}  c1=Q+ {[%clk 0:00:05]} 64. Kxb6 {[%clk 0:00:05]}  Qe3+ {[%clk 0:00:05]} 65. Ka6 {[%clk 0:00:04]}  Qxd3+ {[%clk 0:00:06]} 66. Nb5 {[%clk 0:00:04]}  Ke7 {[%clk 0:00:06]} 67. Kb6 {[%clk 0:00:05]}  Qc4 {[%clk 0:00:06]} 68. Nc7 {[%clk 0:00:05]}  Kd6 {[%clk 0:00:05]} 69. Nb5+ {[%clk 0:00:06]}  Kd7 {[%clk 0:00:05]} 70. Ka5 {[%clk 0:00:06]}  Qb3 {[%clk 0:00:04]} 71. Nd4 {[%clk 0:00:05]}  Qb2 {[%clk 0:00:03]} 72. Nb5 {[%clk 0:00:05]}  Kc6 {[%clk 0:00:03]} 73. Na7+ {[%clk 0:00:06]}  Kc5 {[%clk 0:00:02]} 74. Ka4 {[%clk 0:00:06]}  Qa2# {[%clk 0:00:02]} 0-1


[Site "https://www.chess.com"]

[Event "Titled Tuesday Blitz June 27 Late 2023"]
[White "Guzman Moneo, Alberto"]
[Black "D`Arruda, Ricardo D."]
[WhiteFideId "2209616"]
[BlackFideId "100692"]
[WhiteElo "2399"]
[BlackElo "2546"]
[Result "0-1"]
[Round "9"]
[TimeControl "180+2"]
[Date "2023.06.27"]
[WhiteClock "0:00:00"]
[BlackClock "0:01:13"]
[Board "72"]

1. e4 {[%clk 0:03:00]}  c5 {[%clk 0:02:53]} 2. Nc3 {[%clk 0:03:00]}  e6 {[%clk 0:02:52]} 3. Nge2 {[%clk 0:02:54]}  Nc6 {[%clk 0:02:52]} 4. g3 {[%clk 0:02:52]}  d6 {[%clk 0:02:51]} 5. Bg2 {[%clk 0:02:52]}  Nf6 {[%clk 0:02:51]} 6. O-O {[%clk 0:02:52]}  Be7 {[%clk 0:02:50]} 7. d4 {[%clk 0:02:53]}  cxd4 {[%clk 0:02:50]} 8. Nxd4 {[%clk 0:02:54]}  O-O {[%clk 0:02:49]} 9. Nxc6 {[%clk 0:02:53]}  bxc6 {[%clk 0:02:50]} 10. e5 {[%clk 0:02:54]}  Nd5 {[%clk 0:02:50]} 11. exd6 {[%clk 0:02:52]}  Bxd6 {[%clk 0:02:50]} 12. Ne4 {[%clk 0:02:51]}  Be7 {[%clk 0:02:50]} 13. c4 {[%clk 0:02:36]}  Nb4 {[%clk 0:02:48]} 14. a3 {[%clk 0:02:35]}  Nd3 {[%clk 0:02:47]} 15. Qc2 {[%clk 0:02:20]}  Nxc1 {[%clk 0:02:45]} 16. Raxc1 {[%clk 0:02:20]}  Rb8 {[%clk 0:02:33]} 17. Rfd1 {[%clk 0:02:03]}  Qc7 {[%clk 0:02:33]} 18. c5 {[%clk 0:01:55]}  e5 {[%clk 0:02:29]} 19. Nd6 {[%clk 0:01:53]}  Be6 {[%clk 0:02:27]} 20. b4 {[%clk 0:01:47]}  a5 {[%clk 0:02:27]} 21. Qe4 {[%clk 0:01:46]}  axb4 {[%clk 0:02:25]} 22. axb4 {[%clk 0:01:45]}  Bd5 {[%clk 0:02:24]} 23. Qxe5 {[%clk 0:01:38]}  Bxg2 {[%clk 0:02:23]} 24. Kxg2 {[%clk 0:01:36]}  Rxb4 {[%clk 0:02:23]} 25. Nxf7 {[%clk 0:01:27]}  Qa7 {[%clk 0:01:40]} 26. Nd6 {[%clk 0:01:16]}  Qa2 {[%clk 0:01:39]} 27. Rf1 {[%clk 0:00:56]}  Rb2 {[%clk 0:01:39]} 28. Nf5 {[%clk 0:00:31]}  Bf6 {[%clk 0:01:34]} 29. Qe4 {[%clk 0:00:31]}  Bg5 {[%clk 0:01:22]} 30. Rcd1 {[%clk 0:00:17]}  Re2 {[%clk 0:01:18]} 31. Ne3 {[%clk 0:00:00]}  Rxe3 {[%clk 0:01:13]} 0-1


[Site "https://www.chess.com"]

[Event "Titled Tuesday Blitz June 27 Late 2023"]
[White "Bernado Lopez, Roger"]
[Black "O`Gorman, Tom"]
[WhiteFideId "24585009"]
[BlackFideId "2508249"]
[WhiteElo "2367"]
[BlackElo "2541"]
[Result "1-0"]
[Round "9"]
[TimeControl "180+2"]
[Date "2023.06.27"]
[WhiteClock "0:00:25"]
[BlackClock "0:01:10"]
[Board "73"]

1. e4 {[%clk 0:02:55]}  c5 {[%clk 0:02:59]} 2. Nf3 {[%clk 0:02:54]}  d6 {[%clk 0:03:00]} 3. d4 {[%clk 0:02:54]}  cxd4 {[%clk 0:03:01]} 4. Nxd4 {[%clk 0:02:54]}  Nf6 {[%clk 0:03:02]} 5. Nc3 {[%clk 0:02:54]}  g6 {[%clk 0:03:02]} 6. Be3 {[%clk 0:02:53]}  Bg7 {[%clk 0:03:02]} 7. f3 {[%clk 0:02:53]}  O-O {[%clk 0:03:02]} 8. Qd2 {[%clk 0:02:54]}  Nc6 {[%clk 0:03:01]} 9. Bc4 {[%clk 0:02:54]}  Bd7 {[%clk 0:02:59]} 10. O-O-O {[%clk 0:02:54]}  Rc8 {[%clk 0:02:59]} 11. Bb3 {[%clk 0:02:54]}  Nxd4 {[%clk 0:02:59]} 12. Bxd4 {[%clk 0:02:54]}  b5 {[%clk 0:02:59]} 13. Nd5 {[%clk 0:02:54]}  Nxd5 {[%clk 0:02:57]} 14. Bxg7 {[%clk 0:02:54]}  Kxg7 {[%clk 0:02:58]} 15. exd5 {[%clk 0:02:54]}  a5 {[%clk 0:02:55]} 16. a3 {[%clk 0:02:54]}  Qb6 {[%clk 0:02:48]} 17. Rhe1 {[%clk 0:02:53]}  Rfe8 {[%clk 0:02:46]} 18. g4 {[%clk 0:02:50]}  b4 {[%clk 0:02:43]} 19. a4 {[%clk 0:02:48]}  Qc5 {[%clk 0:02:36]} 20. h4 {[%clk 0:02:46]}  e5 {[%clk 0:02:22]} 21. h5 {[%clk 0:02:23]}  Rh8 {[%clk 0:02:21]} 22. h6+ {[%clk 0:02:22]}  Kf6 {[%clk 0:02:21]} 23. f4 {[%clk 0:02:05]}  Bxg4 {[%clk 0:02:03]} 24. fxe5+ {[%clk 0:02:03]}  dxe5 {[%clk 0:02:03]} 25. Rf1+ {[%clk 0:02:00]}  Bf5 {[%clk 0:02:03]} 26. d6 {[%clk 0:01:49]}  Rhd8 {[%clk 0:01:59]} 27. Qe1 {[%clk 0:01:23]}  Rxd6 {[%clk 0:01:39]} 28. Qh4+ {[%clk 0:00:38]}  g5 {[%clk 0:01:36]} 29. Rxf5+ {[%clk 0:00:37]}  Kxf5 {[%clk 0:01:34]} 30. Rf1+ {[%clk 0:00:38]}  Kg6 {[%clk 0:01:29]} 31. Qe4+ {[%clk 0:00:37]}  Kxh6 {[%clk 0:01:12]} 32. Rh1+ {[%clk 0:00:30]}  Kg7 {[%clk 0:01:11]} 33. Qxh7+ {[%clk 0:00:26]}  Kf6 {[%clk 0:01:10]} 34. Qxf7# {[%clk 0:00:25]} 1-0


[Site "https://www.chess.com"]

[Event "Titled Tuesday Blitz June 27 Late 2023"]
[White "Cooklev, Steven"]
[Black "Pert, Richard G"]
[WhiteFideId "2050552"]
[BlackFideId "404748"]
[WhiteElo "2393"]
[BlackElo "2538"]
[Result "0-1"]
[Round "9"]
[TimeControl "180+2"]
[Date "2023.06.27"]
[WhiteClock "0:00:02"]
[BlackClock "0:00:45"]
[Board "74"]

1. e4 {[%clk 0:03:00]}  d5 {[%clk 0:02:54]} 2. exd5 {[%clk 0:03:00]}  Nf6 {[%clk 0:02:54]} 3. d4 {[%clk 0:03:00]}  Bg4 {[%clk 0:02:53]} 4. Be2 {[%clk 0:03:00]}  Bxe2 {[%clk 0:02:52]} 5. Qxe2 {[%clk 0:03:01]}  Qxd5 {[%clk 0:02:52]} 6. Nf3 {[%clk 0:03:02]}  Nc6 {[%clk 0:02:52]} 7. c4 {[%clk 0:02:52]}  Qf5 {[%clk 0:02:45]} 8. O-O {[%clk 0:02:34]}  O-O-O {[%clk 0:02:34]} 9. d5 {[%clk 0:02:28]}  Nb4 {[%clk 0:02:34]} 10. Be3 {[%clk 0:02:25]}  e6 {[%clk 0:02:13]} 11. Nd4 {[%clk 0:02:14]}  Qd3 {[%clk 0:02:03]} 12. Qxd3 {[%clk 0:02:07]}  Nxd3 {[%clk 0:02:04]} 13. dxe6 {[%clk 0:02:07]}  Nxb2 {[%clk 0:02:01]} 14. exf7 {[%clk 0:02:01]}  Nxc4 {[%clk 0:02:01]} 15. Ne6 {[%clk 0:01:53]}  Rd7 {[%clk 0:02:00]} 16. Nxf8 {[%clk 0:01:48]}  Rxf8 {[%clk 0:01:59]} 17. Nc3 {[%clk 0:01:49]}  Nxe3 {[%clk 0:01:57]} 18. fxe3 {[%clk 0:01:49]}  Rdxf7 {[%clk 0:01:56]} 19. Rac1 {[%clk 0:01:27]}  c6 {[%clk 0:01:55]} 20. Nb5 {[%clk 0:01:26]}  Kb8 {[%clk 0:01:47]} 21. Nd6 {[%clk 0:01:25]}  Rd7 {[%clk 0:01:44]} 22. Nf5 {[%clk 0:01:24]}  Nd5 {[%clk 0:01:35]} 23. e4 {[%clk 0:01:23]}  Nb4 {[%clk 0:01:34]} 24. a3 {[%clk 0:01:16]}  Nd3 {[%clk 0:01:32]} 25. Rcd1 {[%clk 0:01:14]}  g6 {[%clk 0:01:29]} 26. Ne3 {[%clk 0:00:43]}  Rxf1+ {[%clk 0:01:30]} 27. Kxf1 {[%clk 0:00:40]}  Ne5 {[%clk 0:01:25]} 28. Rxd7 {[%clk 0:00:36]}  Nxd7 {[%clk 0:01:25]} 29. Ke2 {[%clk 0:00:36]}  Kc7 {[%clk 0:01:24]} 30. Kf3 {[%clk 0:00:36]}  b5 {[%clk 0:01:22]} 31. Kf4 {[%clk 0:00:37]}  Kd6 {[%clk 0:01:22]} 32. Kg5 {[%clk 0:00:37]}  a5 {[%clk 0:01:14]} 33. Kh6 {[%clk 0:00:33]}  Nf6 {[%clk 0:01:14]} 34. Kg7 {[%clk 0:00:25]}  Nxe4 {[%clk 0:01:12]} 35. Kxh7 {[%clk 0:00:25]}  g5 {[%clk 0:01:12]} 36. Kg6 {[%clk 0:00:23]}  Ke5 {[%clk 0:01:10]} 37. g4 {[%clk 0:00:16]}  c5 {[%clk 0:01:08]} 38. a4 {[%clk 0:00:15]}  bxa4 {[%clk 0:01:06]} 39. Nc4+ {[%clk 0:00:15]}  Kd5 {[%clk 0:01:02]} 40. Nb6+ {[%clk 0:00:13]}  Kd4 {[%clk 0:01:01]} 41. Kf5 {[%clk 0:00:11]}  c4 {[%clk 0:01:00]} 42. Nxa4 {[%clk 0:00:12]}  c3 {[%clk 0:01:00]} 43. Nxc3 {[%clk 0:00:06]}  Kxc3 {[%clk 0:00:48]} 44. Kxe4 {[%clk 0:00:06]}  a4 {[%clk 0:00:49]} 45. Kf5 {[%clk 0:00:05]}  a3 {[%clk 0:00:49]} 46. Kxg5 {[%clk 0:00:06]}  a2 {[%clk 0:00:50]} 47. h4 {[%clk 0:00:06]}  a1=Q {[%clk 0:00:50]} 48. h5 {[%clk 0:00:07]}  Kd3 {[%clk 0:00:50]} 49. Kg6 {[%clk 0:00:07]}  Qh8 {[%clk 0:00:48]} 50. h6 {[%clk 0:00:07]}  Ke4 {[%clk 0:00:48]} 51. g5 {[%clk 0:00:07]}  Kf4 {[%clk 0:00:47]} 52. Kh5 {[%clk 0:00:06]}  Kf5 {[%clk 0:00:46]} 53. g6 {[%clk 0:00:07]}  Qb2 {[%clk 0:00:45]} 54. h7 {[%clk 0:00:02]}  Qh2# {[%clk 0:00:45]} 0-1


[Site "https://www.chess.com"]

[Event "Titled Tuesday Blitz June 27 Late 2023"]
[White "Liu, Casper"]
[Black "Fajdetic, Hrvoje"]
[WhiteFideId "1454153"]
[BlackFideId "14501945"]
[WhiteElo "2532"]
[BlackElo "2349"]
[Result "1-0"]
[Round "9"]
[TimeControl "180+2"]
[Date "2023.06.27"]
[WhiteClock "0:01:15"]
[BlackClock "0:00:00"]
[Board "75"]

1. e4 {[%clk 0:03:00]}  c5 {[%clk 0:02:59]} 2. d4 {[%clk 0:03:01]}  cxd4 {[%clk 0:02:58]} 3. Qxd4 {[%clk 0:03:02]}  Nc6 {[%clk 0:02:57]} 4. Qe3 {[%clk 0:03:03]}  g6 {[%clk 0:02:55]} 5. Nc3 {[%clk 0:03:03]}  Bg7 {[%clk 0:02:55]} 6. Bd2 {[%clk 0:03:04]}  d6 {[%clk 0:02:50]} 7. O-O-O {[%clk 0:03:04]}  Nf6 {[%clk 0:02:48]} 8. f3 {[%clk 0:03:04]}  O-O {[%clk 0:02:44]} 9. h4 {[%clk 0:03:04]}  h5 {[%clk 0:02:42]} 10. Bc4 {[%clk 0:03:05]}  Ne5 {[%clk 0:02:28]} 11. Bb3 {[%clk 0:03:04]}  Bd7 {[%clk 0:02:11]} 12. Nge2 {[%clk 0:03:04]}  b5 {[%clk 0:02:09]} 13. Nf4 {[%clk 0:02:45]}  a5 {[%clk 0:02:06]} 14. Ncd5 {[%clk 0:02:40]}  Nc4 {[%clk 0:01:48]} 15. Bxc4 {[%clk 0:02:37]}  bxc4 {[%clk 0:01:49]} 16. Bc3 {[%clk 0:02:37]}  Nxd5 {[%clk 0:00:37]} 17. Rxd5 {[%clk 0:02:36]}  Bh6 {[%clk 0:00:29]} 18. g4 {[%clk 0:01:51]}  e5 {[%clk 0:00:13]} 19. g5 {[%clk 0:01:47]}  Bg7 {[%clk 0:00:09]} 20. Qd2 {[%clk 0:01:24]}  exf4 {[%clk 0:00:06]} 21. Bxg7 {[%clk 0:01:23]}  Kxg7 {[%clk 0:00:06]} 22. Rxd6 {[%clk 0:01:23]}  Qb8 {[%clk 0:00:04]} 23. Rxd7 {[%clk 0:01:22]}  Qb4 {[%clk 0:00:03]} 24. Qd4+ {[%clk 0:01:22]}  Kg8 {[%clk 0:00:03]} 25. a3 {[%clk 0:01:21]}  Qb5 {[%clk 0:00:02]} 26. Rd1 {[%clk 0:01:19]}  Rab8 {[%clk 0:00:00]} 27. Qc3 {[%clk 0:01:15]} 1-0


[Site "https://www.chess.com"]

[Event "Titled Tuesday Blitz June 27 Late 2023"]
[White "Bruedigam, Martin"]
[Black "Prydun, Andriy"]
[WhiteFideId "24608033"]
[BlackFideId "14145898"]
[WhiteElo "2518"]
[BlackElo "2403"]
[Result "1-0"]
[Round "9"]
[TimeControl "180+2"]
[Date "2023.06.27"]
[WhiteClock "0:00:04"]
[BlackClock "0:00:00"]
[Board "77"]

1. c4 {[%clk 0:03:00]}  Nf6 {[%clk 0:02:59]} 2. e3 {[%clk 0:03:01]}  c6 {[%clk 0:02:50]} 3. b3 {[%clk 0:02:59]}  e5 {[%clk 0:02:49]} 4. Bb2 {[%clk 0:02:59]}  Bd6 {[%clk 0:02:48]} 5. Nf3 {[%clk 0:02:53]}  Qe7 {[%clk 0:02:46]} 6. d4 {[%clk 0:02:44]}  Bb4+ {[%clk 0:02:29]} 7. Nc3 {[%clk 0:02:40]}  d6 {[%clk 0:02:22]} 8. Be2 {[%clk 0:02:39]}  O-O {[%clk 0:02:21]} 9. O-O {[%clk 0:02:39]}  Re8 {[%clk 0:02:15]} 10. a3 {[%clk 0:02:23]}  Ba5 {[%clk 0:02:14]} 11. b4 {[%clk 0:02:22]}  Bc7 {[%clk 0:02:13]} 12. b5 {[%clk 0:02:21]}  Nbd7 {[%clk 0:01:54]} 13. a4 {[%clk 0:02:20]}  a5 {[%clk 0:01:22]} 14. Rb1 {[%clk 0:01:57]}  Nf8 {[%clk 0:00:56]} 15. Ba3 {[%clk 0:01:52]}  Qd8 {[%clk 0:00:43]} 16. bxc6 {[%clk 0:01:50]}  bxc6 {[%clk 0:00:40]} 17. d5 {[%clk 0:01:35]}  c5 {[%clk 0:00:38]} 18. e4 {[%clk 0:01:33]}  N6d7 {[%clk 0:00:28]} 19. Bd3 {[%clk 0:01:27]}  Nb8 {[%clk 0:00:27]} 20. Bc1 {[%clk 0:01:23]}  Na6 {[%clk 0:00:26]} 21. Rb3 {[%clk 0:01:22]}  Nb4 {[%clk 0:00:26]} 22. Bb1 {[%clk 0:01:22]}  Bd7 {[%clk 0:00:25]} 23. Ne1 {[%clk 0:01:13]}  Ng6 {[%clk 0:00:19]} 24. f3 {[%clk 0:01:01]}  Ne7 {[%clk 0:00:19]} 25. g4 {[%clk 0:00:57]}  Nc8 {[%clk 0:00:19]} 26. f4 {[%clk 0:00:48]}  exf4 {[%clk 0:00:18]} 27. Bxf4 {[%clk 0:00:46]}  Nb6 {[%clk 0:00:17]} 28. Qf3 {[%clk 0:00:42]}  Rf8 {[%clk 0:00:17]} 29. g5 {[%clk 0:00:39]}  Nxc4 {[%clk 0:00:17]} 30. Nb5 {[%clk 0:00:35]}  Bxb5 {[%clk 0:00:16]} 31. axb5 {[%clk 0:00:35]}  Qe7 {[%clk 0:00:16]} 32. Qh5 {[%clk 0:00:34]}  Ne5 {[%clk 0:00:16]} 33. Rh3 {[%clk 0:00:34]}  h6 {[%clk 0:00:15]} 34. gxh6 {[%clk 0:00:33]}  g6 {[%clk 0:00:15]} 35. h7+ {[%clk 0:00:33]}  Kh8 {[%clk 0:00:16]} 36. Qe2 {[%clk 0:00:17]}  a4 {[%clk 0:00:10]} 37. Bh6 {[%clk 0:00:16]}  Rfe8 {[%clk 0:00:07]} 38. Nc2 {[%clk 0:00:16]}  Nxc2 {[%clk 0:00:04]} 39. Qxc2 {[%clk 0:00:17]}  a3 {[%clk 0:00:05]} 40. Qb3 {[%clk 0:00:17]}  Bb6 {[%clk 0:00:05]} 41. Kh1 {[%clk 0:00:16]}  c4 {[%clk 0:00:05]} 42. Qg3 {[%clk 0:00:15]}  Bc5 {[%clk 0:00:05]} 43. Ba2 {[%clk 0:00:16]}  f6 {[%clk 0:00:05]} 44. Bf4 {[%clk 0:00:16]}  Qg7 {[%clk 0:00:04]} 45. Rb1 {[%clk 0:00:14]}  Bd4 {[%clk 0:00:04]} 46. b6 {[%clk 0:00:14]}  g5 {[%clk 0:00:04]} 47. Bd2 {[%clk 0:00:13]}  Bb2 {[%clk 0:00:04]} 48. Qf2 {[%clk 0:00:09]}  Reb8 {[%clk 0:00:04]} 49. Be3 {[%clk 0:00:09]}  Nd3 {[%clk 0:00:03]} 50. Qf5 {[%clk 0:00:08]}  Ne5 {[%clk 0:00:04]} 51. Rg3 {[%clk 0:00:05]}  Rf8 {[%clk 0:00:03]} 52. Rg2 {[%clk 0:00:05]}  Rf7 {[%clk 0:00:03]} 53. Rf1 {[%clk 0:00:05]}  Qxh7 {[%clk 0:00:04]} 54. Qe6 {[%clk 0:00:06]}  Qg7 {[%clk 0:00:02]} 55. Qxd6 {[%clk 0:00:06]}  Raf8 {[%clk 0:00:02]} 56. Qc5 {[%clk 0:00:05]}  Ng6 {[%clk 0:00:02]} 57. d6 {[%clk 0:00:04]}  Be5 {[%clk 0:00:03]} 58. Bxc4 {[%clk 0:00:05]}  Qh6 {[%clk 0:00:03]} 59. Bxf7 {[%clk 0:00:05]}  Rxf7 {[%clk 0:00:04]} 60. d7 {[%clk 0:00:04]}  Rxd7 {[%clk 0:00:04]} 61. Qc8+ {[%clk 0:00:05]}  Nf8 {[%clk 0:00:04]} 62. Bxg5 {[%clk 0:00:05]}  Qg7 {[%clk 0:00:01]} 63. Bxf6 {[%clk 0:00:04]}  Bxf6 {[%clk 0:00:01]} 64. Rxg7 {[%clk 0:00:04]}  Bxg7 {[%clk 0:00:00]} 65. Rxf8+ {[%clk 0:00:04]} 1-0


[Site "https://www.chess.com"]

[Event "Titled Tuesday Blitz June 27 Late 2023"]
[White "Peycheva, Gergana"]
[Black "Carrasco Miranda, Andres"]
[WhiteFideId "2916711"]
[BlackFideId "3405990"]
[WhiteElo "2512"]
[BlackElo "2402"]
[Result "0-1"]
[Round "9"]
[TimeControl "180+2"]
[Date "2023.06.27"]
[WhiteClock "0:00:02"]
[BlackClock "0:00:11"]
[Board "78"]

1. d4 {[%clk 0:03:00]}  Nf6 {[%clk 0:01:00]} 2. c4 {[%clk 0:02:58]}  g6 {[%clk 0:01:00]} 3. Nc3 {[%clk 0:02:57]}  d5 {[%clk 0:01:00]} 4. cxd5 {[%clk 0:02:58]}  Nxd5 {[%clk 0:01:00]} 5. e4 {[%clk 0:02:55]}  Nxc3 {[%clk 0:01:01]} 6. bxc3 {[%clk 0:02:56]}  Bg7 {[%clk 0:01:01]} 7. Nf3 {[%clk 0:02:57]}  c5 {[%clk 0:01:01]} 8. Be3 {[%clk 0:02:57]}  Qa5 {[%clk 0:01:01]} 9. Qd2 {[%clk 0:02:57]}  O-O {[%clk 0:01:00]} 10. Rc1 {[%clk 0:02:57]}  Nc6 {[%clk 0:00:59]} 11. d5 {[%clk 0:02:56]}  Ne5 {[%clk 0:01:00]} 12. Nxe5 {[%clk 0:02:49]}  Bxe5 {[%clk 0:01:00]} 13. Be2 {[%clk 0:02:50]}  e6 {[%clk 0:01:00]} 14. h4 {[%clk 0:02:27]}  exd5 {[%clk 0:00:59]} 15. exd5 {[%clk 0:02:28]}  Re8 {[%clk 0:00:52]} 16. h5 {[%clk 0:02:27]}  Bf5 {[%clk 0:00:49]} 17. hxg6 {[%clk 0:02:26]}  Bxg6 {[%clk 0:00:48]} 18. Kf1 {[%clk 0:02:05]}  c4 {[%clk 0:00:47]} 19. Bd4 {[%clk 0:01:46]}  Qxd5 {[%clk 0:00:44]} 20. Bf3 {[%clk 0:01:40]}  Qd6 {[%clk 0:00:43]} 21. Bxb7 {[%clk 0:01:34]}  Rad8 {[%clk 0:00:42]} 22. Rh4 {[%clk 0:01:05]}  Qf6 {[%clk 0:00:37]} 23. g3 {[%clk 0:00:59]}  Bd3+ {[%clk 0:00:27]} 24. Kg1 {[%clk 0:00:57]}  Bxd4 {[%clk 0:00:27]} 25. Rg4+ {[%clk 0:00:47]}  Kh8 {[%clk 0:00:23]} 26. cxd4 {[%clk 0:00:37]}  Rxd4 {[%clk 0:00:21]} 27. Qc3 {[%clk 0:00:35]}  Rd6 {[%clk 0:00:14]} 28. Rf4 {[%clk 0:00:25]}  Qxc3 {[%clk 0:00:14]} 29. Rxc3 {[%clk 0:00:25]}  Re1+ {[%clk 0:00:13]} 30. Kg2 {[%clk 0:00:23]}  f5 {[%clk 0:00:14]} 31. Bc8 {[%clk 0:00:14]}  Be4+ {[%clk 0:00:12]} 32. Rxe4 {[%clk 0:00:10]}  fxe4 {[%clk 0:00:11]} 33. Rxc4 {[%clk 0:00:10]}  Rd2 {[%clk 0:00:11]} 34. Bf5 {[%clk 0:00:07]}  e3 {[%clk 0:00:11]} 35. Rc8+ {[%clk 0:00:06]}  Kg7 {[%clk 0:00:11]} 36. Rc7+ {[%clk 0:00:05]}  Kf6 {[%clk 0:00:11]} 37. Bxh7 {[%clk 0:00:04]}  Rxf2+ {[%clk 0:00:11]} 38. Kh3 {[%clk 0:00:04]}  Rh1+ {[%clk 0:00:11]} 39. Kg4 {[%clk 0:00:05]}  e2 {[%clk 0:00:12]} 40. Rc6+ {[%clk 0:00:04]}  Kg7 {[%clk 0:00:11]} 41. Rc7+ {[%clk 0:00:04]}  Kh8 {[%clk 0:00:10]} 42. Bd3 {[%clk 0:00:02]}  e1=Q {[%clk 0:00:10]} 43. Rc8+ {[%clk 0:00:03]}  Kg7 {[%clk 0:00:11]} 44. Rc7+ {[%clk 0:00:03]}  Kf6 {[%clk 0:00:11]} 45. Rc6+ {[%clk 0:00:04]}  Ke5 {[%clk 0:00:11]} 46. Rc5+ {[%clk 0:00:04]}  Kd4 {[%clk 0:00:12]} 47. Rc4+ {[%clk 0:00:05]}  Kxd3 {[%clk 0:00:11]} 48. Ra4 {[%clk 0:00:02]}  Qe4+ {[%clk 0:00:11]} 0-1


[Site "https://www.chess.com"]